fUST/lending_fUST_20240904
["ID","MTS","AMOUNT","RATE_DAILY","PERIOD"]
[337063558,1725402643469,-3438.311573,0.0002736,2]
[337063559,1725402643478,-1651.80919945,0.0002738,15]
[337063594,1725402646356,-34385.76767541,0.0002738,15]
[337063595,1725402646366,-189.03,0.0002738,3]
[337063596,1725402646376,-567.11,0.0002738,3]
[337063597,1725402646385,-2281.09,0.0002738,3]
[337063598,1725402646394,-1900.91,0.0002738,3]
[337063599,1725402646405,-1584.09,0.0002738,3]
[337063600,1725402646414,-35.92872206,0.00027389,2]
[337063601,1725402646426,-209.21199454,0.00027389,2]
[337063602,1725402646435,-155.02,0.00027389,2]
[337063603,1725402646444,-163970.28250741,0.0002739,2]
[337063604,1725402646456,-1143.28716003,0.000274,2]
[337063605,1725402646466,-199.57994518,0.00027479,2]
[337063606,1725402646475,-500.0,0.00027479,2]
[337063607,1725402646485,-500.0,0.00027479,2]
[337063608,1725402646496,-278.86143922,0.00027479,2]
[337063609,1725402646505,-500.0,0.00027479,2]
[337063610,1725402646515,-612.77832106,0.00027479,2]
[337063611,1725402646524,-500.0,0.00027479,2]
[337063612,1725402646535,-550.0,0.00027479,2]
[337063613,1725402646546,-82254.3152251,0.0002748,3]
[337063614,1725402646555,-18389.51676924,0.0002748,15]
[337063615,1725402646565,-151.0,0.0002748,7]
[337063616,1725402646574,-173874.00156922,0.0002748,3]
[337063633,1725403625114,-183.87213459,0.00023937,2]
[337063637,1725403749097,-66.12786541,0.00023937,2]
[337063638,1725403749121,-250.0,0.00024003,2]
[337063639,1725403749145,-250.0,0.00024068,2]
[337063640,1725403767101,-216.38673627,0.00024134,2]
[337063641,1725403802668,256.993613,0.00023617,2]
[337063642,1725403802690,2018.91614222,0.00023617,2]
[337063643,1725403802710,724.09024478,0.00023617,2]
[337063678,1725403832346,-33.61326373,0.00024134,2]
[337063680,1725403832356,-250.0,0.00024199,2]
[337063682,1725403832366,-250.0,0.00024265,2]
[337063684,1725403832376,-250.0,0.00024331,2]
[337063686,1725403832386,-250.0,0.00024396,2]
[337063688,1725403832396,-250.0,0.00024462,2]
[337063690,1725403832405,-250.0,0.00024528,2]
[337063692,1725403832415,-250.0,0.00024593,2]
[337063694,1725403832425,-380.0,0.00024658,2]
[337063696,1725403832435,-200.0,0.00024658,2]
[337063698,1725403832446,-250.0,0.00024659,2]
[337063701,1725403832457,-300.0,0.00024691,2]
[337063703,1725403832466,-2871.38673627,0.00024692,2]
[337063705,1725403832478,-323.47788715,0.00024692,2]
[337063752,1725403838453,-1824.1587862,0.00024692,2]
[337063753,1725403838465,-19880.97659038,0.00024692,2]
[337063754,1725403838475,-418.0027915,0.00024714,2]
[337063755,1725403838484,-250.0,0.00024725,2]
[337063756,1725403838497,-309.5210958,0.00024755,2]
[337063757,1725403838506,-250.0,0.0002479,2]
[337063758,1725403838516,-6047.68429461,0.00024832,2]
[337063759,1725403838528,-16059.82263862,0.00024832,2]
[337063760,1725403838539,-463.60802538,0.00024832,2]
[337063761,1725403838551,-618.00417165,0.00024832,2]
[337063762,1725403838563,-23353.50283618,0.00024832,2]
[337063856,1725403846507,-2006.70411706,0.00024832,2]
[337063857,1725403846517,-250.0,0.00024856,2]
[337063858,1725403846527,-250.0,0.00024922,2]
[337063859,1725403846537,-250.0,0.00024987,2]
[337063860,1725403846546,-250.0,0.00025053,2]
[337063861,1725403846556,-250.0,0.00025118,2]
[337063862,1725403846566,-250.0,0.00025184,2]
[337063863,1725403846576,-3000.0,0.000264,2]
[337063864,1725403846588,-3000.0,0.0002641,2]
[337063865,1725403846599,-3000.0,0.0002642,2]
[337063866,1725403846609,-1566.74,0.0002642,3]
[337063867,1725403846618,-1305.62,0.0002642,3]
[337063868,1725403846629,-814.28,0.0002642,3]
[337063869,1725403846639,-3000.0,0.0002643,2]
[337063870,1725403846650,-29009.20960795,0.0002643,3]
[337063878,1725404744573,8075.72466253,0.0001,2]
[337063879,1725404829096,-189.9146093,0.00023521,2]
[337063880,1725404829120,-165.340798,0.00024546,2]
[337063881,1725404829253,-309.521094,0.00024597,2]
[337063882,1725404829278,-151.82365759,0.00024653,2]
[337063883,1725404845086,-600.0,0.00024449,7]
[337063884,1725404845108,-835.2295983,0.0002455,2]
[337063885,1725404845132,-13.51714041,0.00024653,2]
[337063886,1725404845153,-600.0,0.00024714,8]
[337063887,1725404845175,-600.0,0.00024715,8]
[337063888,1725404845218,-507.21766406,0.00024715,8]
[337063889,1725404863874,10000.0,0.000201,2]
[337063890,1725404949088,-201.0,0.00022,2]
[337063903,1725405032587,-600.0,0.00024231,7]
[337063904,1725405032597,-414.93921385,0.00024449,7]
[337063905,1725405032611,-185.06078615,0.00024449,7]
[337063906,1725405032621,-92.78233594,0.00024715,8]
[337063907,1725405032631,-393.48689506,0.00024715,8]
[337063910,1725405032650,-206.51310494,0.00024715,8]
[337063913,1725405032660,-108.64189506,0.00024715,8]
[337063923,1725405038704,-329.1579,0.00024715,8]
[337063924,1725405038718,-162.20020494,0.00024715,8]
[337063925,1725405038729,-300.0,0.00024758,2]
[337063926,1725405038741,-1304.88507564,0.00024759,2]
[337063936,1725405040686,-728.23,0.00024759,2]
[337063937,1725405040821,-3391.76335903,0.00024759,2]
[337063942,1725405043700,-19475.12156533,0.00024759,2]
[337063943,1725405043710,-165.340798,0.00024759,2]
[337063944,1725405043720,-165.340798,0.00024866,2]
[337063945,1725405043730,-165.340798,0.00024973,2]
[337063946,1725405043741,-600.0,0.0002498,9]
[337063947,1725405043750,-600.0,0.0002498,9]
[337063948,1725405043762,-171.16414,0.00025018,2]
[337063950,1725405043771,-165.340798,0.00025079,2]
[337063951,1725405043780,-165.340798,0.00025186,2]
[337063952,1725405043789,-3578.53989409,0.00025192,2]
[337063953,1725405043798,-165.340798,0.00025292,2]
[337063954,1725405043808,-165.340798,0.00025399,2]
[337063955,1725405043817,-165.340798,0.00025506,2]
[337063956,1725405043828,-165.340798,0.00025612,2]
[337063957,1725405043837,-1192.23383645,0.00025687,10]
[337063958,1725405043958,-165.340798,0.00025719,2]
[337063959,1725405043969,-165.340798,0.00025825,2]
[337063960,1725405043979,-10000.0,0.00026,4]
[337063961,1725405043988,-2246.41081286,0.00026096,2]
[337063962,1725405043997,-208.0368303,0.00026192,2]
[337063963,1725405044008,-208.0368303,0.00026301,2]
[337063964,1725405044017,-208.0368303,0.00026301,2]
[337063965,1725405044027,-208.0368303,0.00026301,2]
[337063966,1725405044036,-3000.0,0.000264,2]
[337063967,1725405044045,-3000.0,0.0002641,2]
[337063968,1725405044055,-3000.0,0.0002642,2]
[337063969,1725405044064,-1265.21756842,0.0002643,2]
[337063998,1725405940134,-240.0,0.00023,2]
[337063999,1725405940160,-171.164141,0.00024601,2]
[337064000,1725405940186,-165.340798,0.00024964,2]
[337064001,1725405940211,-165.340798,0.00025225,2]
[337064002,1725405940235,-300.0,0.00025424,2]
[337064003,1725405940259,-1695.23639623,0.00025425,2]
[337064007,1725406008117,-219.63239131,0.00025424,2]
[337064031,1725406040129,-2308.92601589,0.000254,2]
[337064032,1725406041098,-191.07398411,0.000254,2]
[337064033,1725406041122,-300.0,0.00025424,2]
[337064034,1725406041146,-238.97363585,0.00025425,2]
[337064122,1725406117243,10072.80541944,0.0002,2]
[337064123,1725406123520,4299.1123688,0.0002,2]
[337064124,1725406124293,20806.3048956,0.0002,2]
[337064125,1725406126343,172.20101876,0.0002,2]
[337064126,1725406153107,-319.48163555,0.00024,2]
[337064146,1725406231690,-276.31879854,0.00024818,2]
[337064189,1725406237825,-1219.09888816,0.00024818,2]
[337064190,1725406237856,-3017.52691722,0.00024818,2]
[337064191,1725406237868,-20387.05539608,0.00024818,2]
[337064192,1725406237879,-1031.06498208,0.00025,2]
[337064193,1725406237888,-300.0,0.00025424,2]
[337064194,1725406237898,-165.340798,0.00025485,2]
[337064195,1725406237907,-165.340798,0.00025745,2]
[337064196,1725406237917,-165.340798,0.00026005,2]
[337064198,1725406237927,-1719.1557865,0.0002603,2]
[337064200,1725406237936,-3131.22240732,0.00026165,2]
[337064202,1725406237946,-2246.41081286,0.00026263,2]
[337064204,1725406237956,-165.340798,0.00026265,2]
[337064205,1725406237966,-3000.0,0.000264,2]
[337064206,1725406237975,-3000.0,0.0002641,2]
[337064207,1725406237985,-3000.0,0.0002642,2]
[337064208,1725406237994,-3000.0,0.0002643,2]
[337064209,1725406238003,-3000.0,0.0002644,2]
[337064210,1725406238012,-5740.659802,0.0002645,2]
[337064211,1725406238021,-208.0368303,0.000265,2]
[337064212,1725406238030,-600.0,0.00026501,13]
[337064213,1725406238039,-1719.1557865,0.0002653,2]
[337064214,1725406238048,-600.0,0.00026656,14]
[337064215,1725406238058,-1000.0,0.000269,2]
[337064216,1725406238066,-819.3959652,0.00026971,2]
[337064217,1725406238076,-414.6754655,0.00027315,2]
[337064218,1725406238194,-151.0,0.00027328,3]
[337064219,1725406238204,-1000.0,0.000274,2]
[337064220,1725406238214,-150.01,0.00027478,2]
[337064221,1725406238223,-3637.94445792,0.0002788,14]
[337064222,1725406238232,-600.0,0.00027936,20]
[337064223,1725406238241,-420.0,0.00027966,2]
[337064224,1725406238250,-600.0,0.0002813,21]
[337064225,1725406238259,-600.0,0.0002813,21]
[337064226,1725406238268,-153.0,0.00028137,2]
[337064227,1725406238278,-151.0,0.00028193,3]
[337064228,1725406238288,-600.0,0.00028497,23]
[337064229,1725406238297,-858.17732903,0.00028618,2]
[337064230,1725406238306,-182.5559643,0.00028638,2]
[337064231,1725406238315,-1000.0,0.00028648,2]
[337064232,1725406238325,-182.5559643,0.00028669,2]
[337064233,1725406238334,-283.07838001,0.000287,2]
[337064234,1725406238344,-283.07838,0.000287,2]
[337064235,1725406238353,-283.07838,0.000287,2]
[337064236,1725406238362,-283.07838,0.000287,2]
[337064237,1725406238371,-182.5559643,0.000287,2]
[337064238,1725406238380,-1152.09921888,0.000287,2]
[337064239,1725406238390,-151.0,0.00028738,7]
[337064240,1725406238400,-151.0,0.00028738,7]
[337064241,1725406238409,-151.0,0.00028738,7]
[337064242,1725406238420,-151.0,0.00028738,7]
[337064243,1725406238429,-151.0,0.00028738,7]
[337064244,1725406238439,-198.452679,0.00028738,7]
[337064245,1725406238448,-198.452679,0.00028738,7]
[337064246,1725406238457,-151.0,0.00028738,7]
[337064247,1725406238467,-164.230983,0.00028738,7]
[337064248,1725406238476,-164.230983,0.00028738,7]
[337064249,1725406238485,-1000.0,0.00028738,2]
[337064250,1725406238496,-1007.63701077,0.00028738,2]
[337064251,1725406238506,-1604.64,0.00028738,3]
[337064252,1725406238517,-245.0,0.00028739,7]
[337064253,1725406238528,-151.0,0.00028739,7]
[337064254,1725406238538,-151.0,0.00028739,7]
[337064255,1725406238547,-151.0,0.00028739,7]
[337064256,1725406238557,-153.24606,0.00028739,7]
[337064257,1725406238567,-198.452679,0.00028739,7]
[337064258,1725406238580,-198.452679,0.00028739,7]
[337064259,1725406238589,-151.0,0.00028739,7]
[337064260,1725406238598,-164.230983,0.00028739,7]
[337064261,1725406238607,-164.230983,0.00028739,7]
[337064262,1725406238618,-1437.19797678,0.00028747,4]
[337064263,1725406238627,-483.32792629,0.00028747,2]
[337064264,1725406238636,-500.0,0.00028747,2]
[337064265,1725406238646,-480.20300745,0.00028747,2]
[337064266,1725406238659,-500.0,0.00028747,2]
[337064267,1725406238668,-500.0,0.00028747,2]
[337064268,1725406238678,-500.0,0.00028747,2]
[337064269,1725406238688,-262.23838061,0.00028747,2]
[337064270,1725406238698,-11884.20830895,0.00028748,15]
[337064271,1725406238707,-18018.78843743,0.00028748,15]
[337064272,1725406238716,-1541.634354,0.00028748,7]
[337064273,1725406238726,-1541.634354,0.00028748,7]
[337064274,1725406238735,-153.810257,0.00028748,7]
[337064275,1725406238744,-15372.83807469,0.00028748,3]
[337064321,1725406239921,-30356.31675109,0.00028748,3]
[337064332,1725406240017,-256.5473351,0.00028748,3]
[337064335,1725406240033,-2174.19999968,0.00028748,3]
[337064399,1725406242785,-805.80000001,0.00028748,3]
[337064400,1725406242815,-4205.00626853,0.00028748,3]
[337064401,1725406242940,-25528.05432693,0.00028748,3]
[337064405,1725406242975,-24.40359904,0.00028748,3]
[337064406,1725406242987,-882.96114551,0.00028748,3]
[337064422,1725407132111,-273.70821332,0.000264,2]
[337064423,1725407137100,-412.66324508,0.000264,2]
[337064424,1725407251112,-438.08836307,0.000264,2]
[337064425,1725407335154,8224.59,0.000201,2]
[337064432,1725407431902,-24900.0,0.00025947,2]
[337064433,1725407431913,-1875.54017853,0.000264,2]
[337064434,1725407431923,-3491.757188,0.0002641,2]
[337064435,1725407431934,-286.0641625,0.00026758,2]
[337064436,1725407431944,-2344.3639348,0.00026826,2]
[337064437,1725407431955,-171.16414,0.00027155,2]
[337064439,1725407431964,-300.0,0.00027264,2]
[337064440,1725407431974,-1719.1557865,0.00027265,2]
[337064442,1725407431984,-2739.81960644,0.00027665,2]
[337064444,1725407431994,-1719.1557865,0.00027765,2]
[337064447,1725407432007,-580.0,0.00028,14]
[337064448,1725407432018,-151.0,0.00028198,3]
[337064449,1725407432027,-150.0,0.00028508,2]
[337064450,1725407432038,-523.0,0.00028508,2]
[337064451,1725407432048,-1008.23546971,0.00028614,2]
[337064452,1725407432058,-1000.0,0.00028638,2]
[337064453,1725407432067,-1000.0,0.00028699,2]
[337064454,1725407432080,-150.112233,0.000287,6]
[337064455,1725407432091,-1036.88929701,0.000287,2]
[337064456,1725407432100,-875.66563135,0.00028718,3]
[337064469,1725407438091,-1201.17436865,0.00028718,3]
[337064470,1725407438100,-1730.7,0.00028718,3]
[337064471,1725407438110,-1442.25,0.00028718,3]
[337064472,1725407438120,-1201.87,0.00028718,3]
[337064473,1725407438130,-488.32954841,0.00028727,2]
[337064474,1725407438139,-500.0,0.00028727,2]
[337064475,1725407438150,-223.10486732,0.00028727,2]
[337064476,1725407438160,-386.14210521,0.00028727,2]
[337064477,1725407438169,-500.0,0.00028727,2]
[337064478,1725407438178,-1150.32751013,0.00028728,15]
[337064479,1725407438191,-4791.77664435,0.00028728,15]
[337064480,1725407438200,-14276.2700183,0.00028728,15]
[337064481,1725407438211,-22054.1729075,0.00028728,3]
[337064482,1725407438220,-256228.19399017,0.00028728,2]
[337064498,1725407440027,-11826.79500432,0.00028728,2]
[337064499,1725407440039,-12214.81965461,0.00028728,2]
[337064500,1725407440055,-15285.6,0.00028728,2]
[337064538,1725407446230,-797.8,0.00028728,2]
[337064539,1725407446283,-11655.65720638,0.00028728,2]
[337064542,1725407654520,10000.0,0.000201,2]
[337064546,1725408342158,-600.0,0.00024449,7]
[337064547,1725408342181,-138.9753345,0.00024449,7]
[337064548,1725408349153,-968.24232956,0.00024449,7]
[337064549,1725408349175,-600.0,0.00024715,8]
[337064550,1725408349197,-150.0,0.000264,2]
[337064551,1725408349218,-126.15301977,0.00026809,2]
[337064574,1725408632030,-287.505,0.00026396,2]
[337064579,1725408632084,-12.495,0.00026396,2]
[337064580,1725408632094,-24900.0,0.00026397,2]
[337064581,1725408632105,-835.2295983,0.00026674,2]
[337064582,1725408632116,-45.01112123,0.00026809,2]
[337064583,1725408632127,-183.8721346,0.00026874,2]
[337064584,1725408632137,-153.0,0.00027945,2]
[337064585,1725408632148,-153.0,0.00027945,2]
[337064586,1725408632159,-153.0,0.00027945,2]
[337064587,1725408632170,-1000.0,0.00028502,2]
[337064588,1725408632180,-150.0,0.00028508,2]
[337064589,1725408632189,-523.0,0.00028508,2]
[337064590,1725408632199,-150.0,0.00028508,2]
[337064591,1725408632217,-1000.0,0.00028658,2]
[337064592,1725408632229,-1007.1351673,0.000287,2]
[337064593,1725408632239,-579.61,0.00028738,3]
[337064594,1725408632249,-904.96,0.00028738,3]
[337064595,1725408632261,-754.13,0.00028738,3]
[337064596,1725408632272,-153.0,0.0002874,2]
[337064597,1725408632282,-153.0,0.0002874,2]
[337064598,1725408632292,-153.0,0.0002874,2]
[337064599,1725408632304,-150.01,0.00028746,2]
[337064600,1725408632313,-491.83068389,0.00028747,2]
[337064601,1725408632325,-156.17340713,0.00028747,2]
[337064602,1725408632336,-500.0,0.00028747,2]
[337064603,1725408632347,-470.29947365,0.00028747,2]
[337064604,1725408632359,-487.58798028,0.00028747,2]
[337064605,1725408632370,-427.10425304,0.00028747,2]
[337064606,1725408632381,-194.28147872,0.00028747,2]
[337064607,1725408632392,-2971.05207724,0.00028748,15]
[337064608,1725408632404,-31247.65115412,0.00028748,3]
[337064616,1725408638212,-243.88343955,0.00028746,2]
[337064617,1725408638221,-9618.47784478,0.00028748,15]
[337064618,1725408638232,-43691.09195228,0.00028748,3]
[337064619,1725408638243,-21315.30859582,0.00028748,2]
[337064620,1725408638255,-822.74162539,0.00028748,2]
[337064621,1725408638267,-702470.42760481,0.00028748,2]
[337064653,1725408640367,-26742.06165102,0.00028748,2]
[337064660,1725408640418,-11069.25393788,0.00028748,2]
[337064977,1725408643304,-628.44,0.00028738,3]
[337064979,1725408643314,-836.63009517,0.00028748,2]
[337065328,1725408646200,-39576.88120555,0.00028748,2]
[337065331,1725408646214,-4213.11431326,0.00028748,2]
[337065464,1725409546108,-252.1817687,0.00026279,2]
[337065465,1725409546131,-198.066245,0.00026623,2]
[337065466,1725409546153,-249.60014995,0.00027276,2]
[337065467,1725409550089,-50.39985005,0.00027276,2]
[337065468,1725409550112,-300.0,0.00027276,2]
[337065469,1725409550134,-2297.41360479,0.00027277,2]
[337065470,1725409625214,-300.0,0.00027276,2]
[337065471,1725409625236,-3653.41390847,0.00027277,2]
[337065475,1725409726170,20715.00987374,0.0002,2]
[337065476,1725409756129,-319.48163555,0.00024,2]
[337065514,1725409832266,-300.0,0.00026995,2]
[337065516,1725409832279,-120.76752126,0.00026996,2]
[337065518,1725409832293,-24779.23247874,0.00026996,2]
[337065520,1725409832302,-6685.48429826,0.00027,3]
[337065522,1725409832312,-198.066245,0.00027317,2]
[337065524,1725409832321,-2000.0,0.000275,5]
[337065526,1725409832331,-516.869302,0.00028,7]
[337065528,1725409832341,-198.066245,0.00028011,2]
[337065530,1725409832350,-523.0,0.00028192,2]
[337065532,1725409832359,-150.0,0.00028192,2]
[337065534,1725409832369,-153.0,0.0002827,2]
[337065536,1725409832379,-153.0,0.0002827,2]
[337065538,1725409832388,-153.0,0.0002827,2]
[337065540,1725409832397,-153.0,0.0002827,2]
[337065542,1725409832406,-153.0,0.0002827,2]
[337065544,1725409832416,-153.0,0.0002827,2]
[337065546,1725409832425,-153.0,0.0002827,2]
[337065548,1725409832434,-1000.0,0.00028638,2]
[337065550,1725409832443,-502.03333122,0.00028657,2]
[337065552,1725409832453,-500.0,0.00028657,2]
[337065555,1725409832462,-500.0,0.00028657,2]
[337065557,1725409832470,-500.0,0.00028657,2]
[337065559,1725409832480,-500.0,0.00028657,2]
[337065561,1725409832489,-500.0,0.00028657,2]
[337065563,1725409832498,-500.0,0.00028657,2]
[337065565,1725409832507,-500.0,0.00028657,2]
[337065567,1725409832517,-1409.44,0.00028657,2]
[337065569,1725409832526,-500.0,0.00028657,2]
[337065571,1725409832535,-906.42165057,0.00028658,2]
[337065573,1725409832544,-150.112233,0.000287,7]
[337065575,1725409832554,-150.112235,0.000287,9]
[337065577,1725409832563,-523.7,0.00028707,3]
[337065579,1725409832572,-500.0,0.00028716,2]
[337065581,1725409832581,-500.0,0.00028716,2]
[337065583,1725409832590,-500.0,0.00028716,2]
[337065585,1725409832599,-500.0,0.00028716,2]
[337065587,1725409832608,-499.51941875,0.00028716,2]
[337065589,1725409832618,-500.0,0.00028716,2]
[337065591,1725409832627,-329.20963156,0.00028716,2]
[337065593,1725409832637,-250.0,0.00028716,2]
[337065595,1725409832646,-344.64724517,0.00028716,2]
[337065597,1725409832655,-1485.52603862,0.00028717,15]
[337065599,1725409832664,-71191.8059511,0.00028717,3]
[337065601,1725409832676,-461114.33059253,0.00028717,2]
[337065683,1725409834871,465.00888094,0.00024,4]
[337065684,1725409834895,239.15527054,0.00024,4]
[337065685,1725409834924,170.51836445,0.00024,4]
[337065686,1725409834950,490.0,0.00024,4]
[337065722,1725409838419,-8635.31748407,0.00024,4]
[337065724,1725409838436,-500.0,0.00028657,2]
[337065726,1725409838446,-500.0,0.00028657,2]
[337065728,1725409838456,-436.42,0.00028707,3]
[337065731,1725409838466,-1455.26133884,0.00028717,15]
[337065935,1725409840566,-500.0,0.00028657,2]
[337065937,1725409840576,-100.0,0.00028717,15]
[337067938,1725410735110,-166.0,0.00025,2]
[337067939,1725410735132,-166.0,0.0002589,2]
[337067940,1725410735154,-405.91520893,0.000264,2]
[337067941,1725410748103,-130.45624907,0.000264,2]
[337067942,1725410748124,-380.6624884,0.000266,10]
[337067943,1725410835102,-300.0,0.00026162,2]
[337067944,1725410835125,-489.62091761,0.00026163,2]
[337068009,1725411032563,-300.0,0.00026162,2]
[337068011,1725411032574,-747.21271139,0.00026163,2]
[337068013,1725411032587,-23663.166371,0.00026163,2]
[337068017,1725411032599,-233.975762,0.00026577,2]
[337068019,1725411032611,-666.55022299,0.000266,10]
[337068020,1725411032621,-502.77,0.00027,12]
[337068022,1725411032632,-171.164141,0.0002712,2]
[337068023,1725411032641,-166.0,0.00027185,2]
[337068025,1725411032651,-307.7598817,0.00027808,2]
[337068026,1725411032661,-233.975762,0.00027962,2]
[337068028,1725411032670,-2397.3421556,0.00028436,2]
[337068030,1725411032680,-10000.0,0.000285,10]
[337068032,1725411032691,-1000.0,0.00028536,2]
[337068033,1725411032701,-363.68,0.00028547,3]
[337068034,1725411032710,-1274.11,0.00028556,2]
[337068036,1725411032720,-501.72526043,0.00028556,2]
[337068038,1725411032730,-7514.74,0.00028556,2]
[337068040,1725411032746,-12985.12,0.00028556,2]
[337068041,1725411032757,-1468.94,0.00028556,2]
[337068042,1725411032766,-500.0,0.00028556,2]
[337068043,1725411032776,-756.35,0.00028556,2]
[337068044,1725411032786,-500.0,0.00028556,2]
[337068045,1725411032796,-6521.56,0.00028556,2]
[337068046,1725411032805,-500.0,0.00028556,2]
[337068047,1725411032814,-1350.71,0.00028556,2]
[337068048,1725411032824,-5330.27,0.00028556,2]
[337068049,1725411032835,-500.0,0.00028556,2]
[337068050,1725411032846,-28180.50015403,0.00028557,2]
[337068051,1725411032857,-1000.0,0.000286,2]
[337068052,1725411032867,-500.0,0.00028603,2]
[337068053,1725411032878,-241.25307162,0.00028604,2]
[337068054,1725411032888,-500.0,0.00028604,2]
[337068055,1725411032897,-230.44674209,0.00028604,2]
[337068056,1725411032907,-742.76301931,0.00028605,15]
[337068057,1725411032919,-202938.789601,0.00028605,3]
[337068058,1725411032931,-359910.08269035,0.00028605,2]
[337068285,1725411040693,-500.0,0.00028556,2]
[337068287,1725411040703,-4031.60825297,0.00028605,15]
[337068289,1725411040713,-47238.40822666,0.00028605,2]
[337071363,1725411951636,-1711.06768814,0.0002398,2]
[337071364,1725411952129,-1188.86932194,0.0002398,2]
[337071365,1725412002609,-210.91512848,0.00023979,2]
[337071366,1725412030155,-300.0,0.00023979,2]
[337071367,1725412030177,-22000.06298992,0.0002398,2]
[337071368,1725412030201,-171.164141,0.00024475,2]
[337071369,1725412030224,-165.3407984,0.00024582,2]
[337071370,1725412030244,-600.0,0.00024715,8]
[337071371,1725412030271,-45209.6664081,0.00025,30]
[337071372,1725412030295,-2131.47148662,0.00026291,2]
[337071373,1725412030317,-420.0,0.00026377,2]
[337071374,1725412030340,-588.088363,0.000264,2]
[337071375,1725412030365,-1107.21766406,0.00026904,15]
[337071376,1725412030386,-166.0,0.00027,2]
[337071377,1725412030408,-2131.47148659,0.00027022,2]
[337071378,1725412030430,-265.09,0.00027377,3]
[337071379,1725412030451,-337.55,0.00027377,3]
[337071380,1725412030475,-281.29,0.00027377,3]
[337071381,1725412030499,-114998.64744,0.00027387,3]
[337071382,1725412030524,-59965.0390609,0.00027387,2]
[337071383,1725412030547,-168.87715013,0.00027396,2]
[337071384,1725412030577,-500.0,0.00027396,2]
[337071385,1725412030600,-161.31271946,0.00027396,2]
[337071386,1725412030623,-500.0,0.00027397,2]
[337071387,1725412030647,-500.0,0.00027397,2]
[337071388,1725412030675,-500.0,0.00027397,2]
[337071389,1725412030783,-500.0,0.00027397,2]
[337071390,1725412030806,-500.0,0.00027397,2]
[337071391,1725412030828,-1294.43,0.00027397,2]
[337071392,1725412030850,-500.0,0.00027397,2]
[337071393,1725412030872,-171.08901171,0.00027397,2]
[337071394,1725412030896,-500.0,0.00027397,2]
[337071395,1725412030919,-500.0,0.00027397,2]
[337071396,1725412030942,-500.0,0.00027397,2]
[337071397,1725412030963,-500.0,0.00027397,2]
[337071398,1725412030985,-500.0,0.00027397,2]
[337071399,1725412031012,-500.0,0.00027397,2]
[337071400,1725412031034,-500.0,0.00027397,2]
[337071401,1725412031056,-500.0,0.00027397,2]
[337071402,1725412031082,-500.0,0.00027397,2]
[337071403,1725412031105,-500.0,0.00027397,2]
[337071404,1725412031127,-500.0,0.00027397,2]
[337071405,1725412031150,-500.0,0.00027397,2]
[337071406,1725412031172,-244.60184696,0.00027397,2]
[337071407,1725412031194,-500.0,0.00027397,2]
[337071408,1725412031215,-500.0,0.00027397,2]
[337071409,1725412031237,-500.0,0.00027397,2]
[337071410,1725412031262,-500.0,0.00027397,2]
[337071411,1725412031283,-504.86927243,0.00027397,2]
[337071412,1725412031306,-500.0,0.00027397,2]
[337071413,1725412031329,-500.0,0.00027397,2]
[337071414,1725412031350,-500.0,0.00027397,2]
[337071415,1725412031373,-500.0,0.00027397,2]
[337071416,1725412031393,-500.0,0.00027397,2]
[337071417,1725412031415,-500.0,0.00027397,2]
[337071418,1725412031436,-498.76911358,0.00027397,2]
[337071419,1725412031457,-502.63696506,0.00027397,2]
[337071420,1725412031480,-500.0,0.00027397,2]
[337071421,1725412031506,-500.0,0.00027397,2]
[337071422,1725412031527,-500.0,0.00027397,2]
[337071423,1725412031548,-500.0,0.00027397,2]
[337071424,1725412031569,-500.0,0.00027397,2]